bitfinex-derivatives/quotes_ETHF0:USTF0_20250213
["timestamp","ask_amount","ask_price","bid_price","bid_amount"]
[1739421153731,0.00547915,2736.6,2736.1,3.13742209]
[1739421153934,0.73621915,2736.6,2736.2,3.2078]
[1739421154231,0.00547915,2736.6,2736.2,3.7443]
[1739421154526,0.00547915,2736.6,2736.5,0.73075]
[1739421154724,0.00547915,2736.6,2736.5,3.93855]
[1739421154926,1.30841,2737.1,2736.8,0.73066]
[1739421155124,0.5778,2737.1,2736.9,0.73063]
[1739421155830,1.3084,2737.1,2736.8,1.26716]
[1739421156031,0.73064,2737.0,2736.8,0.5365]
[1739421157526,1.3084,2737.1,2736.8,1.26715]
[1739421157725,0.00547915,2737.3,2736.8,3.7443]
[1739421158028,0.00547915,2737.3,2737.0,0.7306]
[1739421158029,0.73601915,2737.3,2737.0,0.7306]
[1739421158328,0.00547915,2737.3,2737.1,0.5809]
[1739421159537,0.73056,2737.2,2737.1,0.5809]
[1739421159938,1.29356,2737.2,2737.1,0.5809]
[1739421160442,1.29356,2737.2,2736.8,6.08497]
[1739421160739,0.7306,2737.1,2736.9,0.5712]
[1739421161245,0.73061,2737.0,2736.9,0.5712]
[1739421162548,1.125,2737.2,2736.8,3.2078]
[1739421162739,1.125,2737.2,2736.7,0.00547915]
[1739421162740,0.73067,2736.8,2736.7,0.00547915]
[1739421163434,0.73065,2736.9,2736.7,0.00547915]
[1739421163641,0.73062,2737.0,2736.7,0.73616915]
[1739421163846,1.125,2737.2,2736.8,0.5783]
[1739421164141,3.94382915,2737.3,2737.0,0.7306]
[1739421164347,0.73058,2737.2,2736.9,1.83533]
[1739421164744,3.21327915,2737.3,2736.9,1.1047]
[1739421164942,0.73059,2737.1,2736.9,1.1047]
[1739421165742,3.21327915,2737.3,2736.9,1.1047]
[1739421166049,0.73061,2737.0,2736.9,0.5461]
[1739421166246,3.21327915,2737.3,2736.8,0.5783]
[1739421166448,0.73064,2736.9,2736.8,0.5783]
[1739421166644,0.73067,2736.8,2736.7,0.00547915]
[1739421166940,0.5681,2737.2,2736.7,0.00547915]
[1739421166941,0.5439,2737.1,2736.7,0.00547915]
[1739421167146,1.27451,2737.1,2736.8,0.73067]
[1739421167344,0.73057,2737.2,2736.9,0.73063]
[1739421167540,3.94382915,2737.3,2737.0,0.7306]
[1739421167740,0.73056,2737.2,2737.1,0.5364]
[1739421169046,0.73067,2736.8,2736.7,0.00547915]
[1739421169238,0.73067,2736.8,2736.7,0.54277915]
[1739421170045,0.73064,2736.9,2736.7,0.54277915]
[1739421170243,3.21327915,2737.3,2736.7,0.54277915]
[1739421170435,3.21327915,2737.3,2736.7,3.68020124]
[1739421170643,3.21327915,2737.3,2736.8,0.5633]
[1739421171047,0.73064,2736.9,2736.8,0.5633]
[1739421171239,0.73067,2736.8,2736.7,3.68020124]
[1739421171439,0.73065,2736.9,2736.7,4.41089124]
[1739421171946,3.21327915,2737.3,2736.7,3.68020124]
[1739421172146,0.73062,2737.0,2736.8,0.73066]
[1739421172343,3.21327915,2737.3,2736.8,0.73066]
[1739421172545,0.73064,2736.9,2736.7,4.41088124]
[1739421172739,0.73064,2736.9,2736.7,4.41089124]
[1739421172942,5.03965915,2737.3,2736.7,3.68020124]
[1739421173144,0.73065,2736.9,2736.7,4.41089124]
[1739421173449,0.73067,2736.8,2736.7,0.54277915]
[1739421175444,0.572,2737.0,2736.7,0.54277915]
[1739421175946,0.73067,2736.8,2736.7,0.54277915]
[1739421177545,0.73067,2736.8,2736.7,0.00547915]
[1739421179953,0.00547915,2737.3,2736.7,6.35070124]
[1739421180146,0.73062,2737.0,2736.8,1.6633]
[1739421180548,0.73064,2736.9,2736.8,0.5622]
[1739421181256,0.73067,2736.8,2736.7,0.00547915]
[1739421183646,0.41690667,2736.9,2736.7,0.00547915]
[1739421183852,0.73065,2736.9,2736.7,0.73616915]
[1739421184051,4.8268,2737.0,2736.7,0.73616915]
[1739421184052,3.2078,2737.0,2736.7,0.00547915]
[1739421184453,0.73067,2736.8,2736.7,0.00547915]
[1739421186754,0.41690667,2736.9,2736.2,0.578]
[1739421187060,0.7308,2736.3,2736.2,0.578]
[1739421187856,0.73076,2736.5,2736.2,0.578]
[1739421188159,3.2078,2736.6,2736.2,1.87461]
[1739421188356,0.73079,2736.4,2736.2,1.87461]
[1739421188558,3.2078,2736.3,2735.5,3.13742209]
[1739421188757,3.13742209,2736.0,2735.6,0.578]
[1739421188957,3.13742209,2736.0,2735.7,0.73095]
[1739421188958,0.7309,2736.0,2735.7,0.73095]
[1739421189465,0.73088,2736.0,2735.7,3.93875]
[1739421189658,1.1469,2736.2,2735.7,3.93874]
[1739421189859,1.1469,2736.2,2735.7,3.2078]
[1739421190054,0.7309,2736.0,2735.7,3.93875]
[1739421190265,1.1469,2736.2,2735.7,3.2078]
[1739421190564,3.7851,2736.7,2736.1,3.2078]
[1739421190862,3.7851,2736.7,2736.2,4.77342209]
[1739421191166,0.73073,2736.6,2736.3,0.73079]
[1739421191764,3.2078,2736.7,2736.3,0.73079]
[1739421192062,0.7307,2736.7,2736.2,4.77342209]
[1739421192263,0.7307,2736.7,2736.3,0.73078]
[1739421192463,0.7307,2736.7,2736.4,3.93856]
[1739421192660,0.5663,2736.8,2736.4,3.2078]
[1739421192865,0.5663,2736.8,2736.6,0.73071]
[1739421193056,1.29698,2736.8,2736.5,0.73074]
[1739421193257,0.5663,2736.8,2736.6,0.7307]
[1739421193661,1.29697,2736.8,2736.5,0.73073]
[1739421193861,0.5663,2736.8,2736.4,3.2078]
[1739421194259,0.73074,2736.6,2736.4,3.2078]
[1739421194560,0.73071,2736.7,2736.4,3.93856]
[1739421194764,0.41661614,2737.0,2736.5,3.13742209]
[1739421194957,0.41661614,2737.0,2736.7,3.2078]
[1739421195159,0.57577915,2737.3,2736.8,1.32215]
[1739421195363,0.73061,2737.0,2736.8,1.1743]
[1739421196063,0.99239529,2737.3,2736.8,4.31172209]
[1739421196366,1.72294529,2737.3,2736.8,4.85862209]
[1739421196563,0.57577915,2737.3,2737.0,0.73061]
[1739421196771,0.00547915,2737.3,2737.0,3.2078]
[1739421197070,0.00547915,2737.3,2737.1,0.73057]
[1739421197270,0.00547915,2737.3,2737.0,3.2078]
[1739421197568,0.00547915,2737.3,2737.2,0.73056]
[1739421197764,0.00547915,2737.3,2737.0,3.2078]
[1739421197976,0.73601915,2737.3,2737.0,3.9384]
[1739421198269,0.73059,2737.1,2737.0,3.2078]
[1739421198464,0.73059,2737.1,2736.8,4.85862209]
[1739421198673,0.73059,2737.1,2736.8,5.58928209]
[1739421198969,0.73058,2737.2,2736.8,5.58928209]
[1739421199160,0.00547915,2737.3,2736.8,4.85862209]
[1739421199469,0.73057,2737.2,2736.9,0.73062]
[1739421199671,0.73057,2737.2,2736.8,4.85862209]
[1739421199970,0.00547915,2737.3,2736.8,4.85862209]
[1739421200168,0.00547915,2737.3,2736.8,1.1743]
[1739421200364,0.73064,2736.9,2736.8,0.5915]
[1739421200567,3.2078,2736.9,2736.4,3.2078]
[1739421200769,0.5835,2736.8,2736.4,3.2078]
[1739421200965,0.5835,2736.8,2736.5,0.575]
[1739421201168,0.41661614,2737.1,2736.6,0.5495]
[1739421201367,0.73069,2736.7,2736.6,0.5495]
[1739421201565,0.5835,2737.1,2736.4,3.2078]
[1739421201869,0.73073,2736.6,2736.4,3.2078]
[1739421202369,0.73076,2736.5,2736.3,0.5495]
[1739421202563,0.73077,2736.4,2736.3,0.5495]
[1739421202769,0.73076,2736.5,2736.3,0.5495]
[1739421203264,3.62434927,2736.9,2736.3,0.5495]
[1739421203465,0.73077,2736.4,2736.3,0.5495]
[1739421204468,6.34522209,2736.9,2736.1,3.2078]
[1739421204773,0.73083,2736.2,2736.1,3.2078]
[1739421204971,1.82674,2736.7,2735.9,0.5709]
[1739421204972,0.73088,2736.0,2735.9,0.5709]
[1739421205272,0.73087,2736.1,2735.9,0.5709]
[1739421205565,0.576,2736.5,2735.9,0.5709]
[1739421205964,0.73082,2736.3,2735.9,1.30179]
[1739421206166,0.73087,2736.1,2735.9,0.5709]
[1739421206365,0.576,2736.5,2735.9,0.5709]
[1739421206564,0.73088,2736.1,2735.9,0.5709]
[1739421206871,0.73081,2736.3,2736.0,0.73087]
[1739421207266,0.576,2736.5,2735.9,0.5709]
[1739421207472,0.73086,2736.1,2735.9,0.5709]
[1739421207674,0.576,2736.5,2735.9,0.5709]
[1739421207879,0.73085,2736.2,2735.9,1.3018]
[1739421208976,0.73085,2736.2,2735.5,1.629]
[1739421208977,3.2078,2736.2,2735.5,3.2078]
[1739421209275,0.731,2735.6,2735.5,3.2078]
[1739421210075,0.73097,2735.7,2735.5,3.2078]
[1739421210272,0.73097,2735.7,2735.5,3.93881]
[1739421210475,0.73642915,2735.8,2735.5,3.93881]
[1739421210665,0.73642915,2735.8,2735.6,0.73099]
[1739421210869,0.00547915,2735.8,2735.6,0.73099]
[1739421211071,0.00547915,2735.8,2735.5,3.2078]
[1739421211270,0.00547915,2735.8,2735.7,0.73096]
[1739421211470,0.00547915,2735.8,2735.5,3.2078]
[1739421211672,0.00547915,2735.8,2735.7,0.73096]
[1739421212576,0.00547915,2735.8,2735.5,3.2078]
[1739421212869,0.00547915,2735.8,2735.6,0.73096]
[1739421213577,0.00547915,2735.8,2735.7,0.5627]
[1739421213771,0.00547915,2735.8,2735.7,1.29366]
[1739421214177,0.00547915,2735.8,2735.7,0.5627]
[1739421214774,0.00547915,2735.8,2735.7,1.29366]
[1739421215376,0.00547915,2735.8,2735.7,0.5627]
[1739421215572,0.73640915,2735.8,2735.7,0.5627]
[1739421215778,0.00547915,2735.8,2735.5,3.2078]
[1739421215981,0.73642915,2735.8,2735.5,3.2078]
[1739421216184,0.73642915,2735.8,2735.6,0.73099]
[1739421216371,0.00547915,2735.8,2735.7,0.73096]
[1739421216571,0.00547915,2735.8,2735.5,3.2078]
[1739421216779,0.73641915,2735.8,2735.6,0.73098]
[1739421216971,0.00547915,2735.8,2735.7,0.73096]
[1739421217176,0.00547915,2735.8,2735.5,3.2078]
[1739421217575,0.00547915,2735.8,2735.7,0.73096]
[1739421218675,0.00547915,2735.8,2735.6,1.27037]
[1739421218874,0.73096,2735.7,2735.5,3.9388]
[1739421219076,0.73643915,2735.8,2735.6,0.73099]
[1739421219275,0.00547915,2735.8,2735.5,3.2078]
[1739421219470,0.73096,2735.7,2735.5,3.9388]
[1739421219674,0.00547915,2735.8,2735.5,3.2078]
[1739421219881,0.73642915,2735.8,2735.6,0.73098]
[1739421220286,0.00547915,2735.8,2735.5,3.2078]
[1739421220478,0.73642915,2735.8,2735.6,0.73099]
[1739421220983,0.00547915,2735.8,2735.6,0.73099]
[1739421221283,0.73098,2735.7,2735.5,3.9388]
[1739421221471,0.73642915,2735.8,2735.6,0.73097]
[1739421221972,0.00547915,2735.8,2735.5,3.2078]
[1739421222178,0.00547915,2735.8,2735.7,0.73096]
[1739421223378,0.73641915,2735.8,2735.6,0.73097]
[1739421223585,0.73096,2735.7,2735.5,3.93881]
[1739421223780,0.00547915,2735.8,2735.5,3.93881]
[1739421224082,0.73099,2735.6,2735.5,3.2078]
[1739421224271,0.00547915,2735.8,2735.5,3.2078]
[1739421224474,0.73098,2735.7,2735.5,3.9388]
[1739421224679,0.00547915,2735.8,2735.5,3.2078]
[1739421224878,0.00547915,2735.8,2735.7,0.73096]
[1739421225083,0.00547915,2735.8,2735.6,3.13742209]
[1739421225385,0.73096,2735.7,2735.6,0.5667]
[1739421226586,0.73099,2735.6,2735.5,3.2078]
[1739421227280,1.26469,2735.6,2735.5,3.2078]
[1739421228684,0.73104,2735.4,2735.3,0.5768]
[1739421230674,0.73104,2735.4,2735.2,3.7633]
[1739421230881,0.73107,2735.3,2735.2,3.7633]
[1739421231081,0.73107,2735.3,2735.2,0.5555]
[1739421233584,0.73114,2735.1,2734.9,3.93896]
[1739421233786,0.73114,2735.1,2734.9,4.52426]
[1739421233990,2.36123,2735.6,2734.9,4.52426]
[1739421234288,2.36123,2735.6,2734.9,3.7931]
[1739421234289,0.5337,2735.6,2734.9,3.7931]
[1739421234491,0.73115,2735.0,2734.9,3.7931]
[1739421234696,1.82754,2735.5,2734.9,4.52426]
[1739421235191,0.73112,2735.2,2734.9,4.52426]
[1739421235794,0.73113,2735.1,2734.9,3.7931]
[1739421235995,0.73113,2735.1,2734.9,4.52427]
[1739421237196,0.73115,2735.0,2734.9,3.7931]
[1739421237989,1.82773,2735.3,2734.7,3.13742209]
[1739421238290,1.30479,2734.9,2734.7,3.86865209]
[1739421238493,1.30479,2734.9,2734.7,44.66865209]
[1739421238887,1.30479,2734.9,2734.7,44.66864209]
[1739421239292,0.5595,2735.2,2734.8,3.2078]
[1739421239487,0.5736,2735.2,2734.9,0.73115]
[1739421239689,0.5736,2735.2,2734.9,0.5776]
[1739421239987,0.73115,2735.0,2734.9,0.5776]
[1739421242296,1.1331,2735.2,2734.9,0.5776]
[1739421242696,0.73115,2735.0,2734.9,0.5776]
[1739421243095,0.73113,2735.1,2734.9,1.30876]
[1739421243598,1.86421,2735.2,2735.0,0.73115]
[1739421243796,1.1331,2735.2,2734.9,0.5776]
[1739421243993,0.73113,2735.1,2734.9,1.30876]
[1739421244500,0.5736,2735.2,2734.9,0.5776]
[1739421244899,0.5828,2735.5,2734.9,0.5776]
[1739421244900,0.5828,2735.5,2735.1,3.2078]
[1739421245103,0.73107,2735.3,2735.2,0.5427]
[1739421249414,0.5596,2735.4,2734.9,0.5776]
[1739421249618,0.73115,2735.0,2734.9,1.1308]
[1739421250325,0.73115,2735.0,2734.1,1.82843]
[1739421250326,0.73126,2734.6,2734.5,3.2078]
[1739421250522,0.73126,2734.6,2734.5,3.7817]
[1739421252012,0.5524,2734.8,2734.5,3.7817]
[1739421252215,3.2078,2735.4,2734.5,3.7817]
[1739421252421,1.30614,2735.1,2734.8,0.7312]
[1739421252623,1.30614,2735.1,2734.9,0.5707]
[1739421252818,1.30614,2735.1,2734.7,0.73122]
[1739421252819,0.73116,2735.0,2734.7,0.73122]
[1739421253119,0.7312,2734.8,2734.7,0.535]
[1739421253319,0.575,2735.1,2734.7,0.535]
[1739421253523,0.73118,2734.9,2734.7,0.535]
[1739421253722,0.73117,2735.0,2734.7,1.83693]
[1739421254027,0.575,2735.1,2734.7,1.1057]
[1739421254221,0.575,2735.1,2734.8,3.2078]
[1739421254427,0.73116,2735.0,2734.7,1.83692]
[1739421255116,0.575,2735.1,2734.7,1.1057]
[1739421255317,0.7312,2734.9,2734.7,1.1057]
[1739421255619,0.575,2735.1,2734.7,1.1057]
[1739421255620,0.7312,2734.8,2734.7,1.1057]
[1739421255819,0.7312,2734.8,2734.7,0.535]
[1739421256025,0.73126,2734.6,2734.5,3.2078]
[1739421256323,1.82788,2735.0,2734.3,1.101]
[1739421256324,0.73131,2734.4,2734.3,1.101]
[1739421256621,0.73131,2734.4,2734.2,45.6158]
[1739421256622,0.73134,2734.3,2734.2,40.8]
[1739421257019,0.73133,2734.4,2734.1,0.5366]
[1739421257324,0.73132,2734.4,2734.1,1.26797]
[1739421257516,0.73132,2734.4,2734.2,40.8]
[1739421257712,0.7313,2734.5,2734.2,41.53136]
[1739421257918,1.32106,2734.6,2734.3,0.73133]
[1739421258124,0.5898,2734.6,2734.2,44.0078]
[1739421258419,1.32106,2734.6,2734.3,0.73133]
[1739421259011,0.5898,2734.6,2734.3,0.73133]
[1739421259217,0.73128,2734.5,2734.2,44.73915]
[1739421259824,0.73128,2734.5,2734.2,44.73914]
[1739421260022,0.5898,2734.6,2734.2,44.73914]
[1739421260023,0.5898,2734.6,2734.2,44.0078]
[1739421260219,0.5898,2734.6,2734.2,40.8]
[1739421260419,3.2078,2734.3,2733.6,3.2078]
[1739421260624,1.1527,2734.2,2733.7,1.1319]
[1739421260817,0.5494,2734.1,2733.7,1.1319]
[1739421261018,0.73144,2733.9,2733.8,40.8]
[1739421261620,3.2078,2734.0,2733.3,3.7617]
[1739421261820,0.73155,2733.5,2733.3,3.7617]
[1739421262015,0.73155,2733.5,2733.4,40.8]
[1739421262221,0.73155,2733.5,2733.3,3.7617]
[1739421262523,0.73158,2733.4,2733.3,3.2078]
[1739421262734,0.73156,2733.5,2733.3,44.0078]
[1739421263224,3.55392096,2733.9,2733.0,0.5359]
[1739421263418,3.55392096,2733.9,2733.2,3.2078]
[1739421263627,3.2078,2734.0,2733.3,0.73159]
[1739421263628,0.73149,2733.8,2733.3,0.73159]
[1739421263820,3.2078,2734.0,2733.3,41.9205]
[1739421264025,3.93923,2734.0,2733.6,0.73151]
[1739421264221,3.2078,2734.0,2733.7,0.5359]
[1739421264422,0.73147,2733.8,2733.7,0.5359]
[1739421264616,3.2078,2734.0,2733.7,0.5359]
[1739421264828,0.73146,2733.9,2733.7,0.5359]
[1739421265029,0.73144,2733.9,2733.7,0.5359]
[1739421265230,0.73144,2733.9,2733.5,3.13742209]
[1739421265425,0.73148,2733.8,2733.5,3.13742209]
[1739421265927,0.73146,2733.9,2733.5,3.93933]
[1739421266330,3.2078,2734.0,2733.5,3.2078]
[1739421266627,0.73149,2733.8,2733.5,3.2078]
[1739421266926,0.73152,2733.6,2733.5,3.2078]
[1739421267131,0.73155,2733.5,2733.4,0.5421]
[1739421267920,0.7316,2733.3,2733.2,3.2078]
[1739421269227,0.7316,2733.3,2732.9,3.2078]
[1739421269228,3.13742209,2733.3,2732.9,3.2078]
[1739421269429,3.2078,2733.0,2732.3,6.37935228]
[1739421269730,0.73178,2732.7,2732.4,40.8]
[1739421270032,0.59437915,2732.9,2732.4,40.8]
[1739421270228,0.59437915,2732.9,2732.4,0.73183]
[1739421270433,1.32610915,2732.9,2732.5,0.73181]
[1739421271031,0.59437915,2732.9,2732.4,0.5882]
[1739421271333,0.73178,2732.7,2732.4,0.5882]
[1739421271728,0.73177,2732.7,2732.4,0.5882]
[1739421272031,0.73176,2732.8,2732.5,0.73182]
[1739421272231,0.00547915,2732.9,2732.7,3.2078]
[1739421272427,3.2078,2733.6,2732.8,1.32404]
[1739421272627,3.93934,2733.6,2733.2,0.73162]
[1739421272829,3.93934,2733.6,2733.3,0.5431]
[1739421273535,3.93933,2733.6,2733.3,1.27469]
[1739421273733,3.2078,2733.6,2733.4,0.5923]
[1739421273930,0.00548938,2733.7,2733.4,0.5923]
[1739421274137,0.00548938,2733.7,2733.4,4.53166]
[1739421274433,0.73698938,2733.7,2733.4,4.53166]
[1739421274633,0.73698938,2733.7,2733.4,3.8001]
[1739421274927,0.00548938,2733.7,2733.4,3.8001]
[1739421275630,0.00548938,2733.7,2733.4,0.5923]
[1739421275832,0.73155,2733.5,2733.4,0.5923]
[1739421276927,0.7316,2733.3,2733.2,0.00548938]
[1739421277126,3.2078,2733.6,2733.2,0.00548938]
[1739421277322,0.73157,2733.5,2733.2,0.00548938]
[1739421277529,0.73159,2733.4,2733.2,0.00548938]
[1739421277729,0.73156,2733.5,2733.2,0.00548938]
[1739421278026,3.7473,2733.6,2733.2,0.00548938]
[1739421278027,0.7316,2733.3,2733.2,0.00548938]
[1739421278221,4.47884,2733.6,2733.2,0.73709938]
[1739421278427,3.7473,2733.6,2733.2,0.73709938]
[1739421278628,0.73155,2733.5,2733.2,0.73709938]
[1739421279232,1.27103,2733.6,2733.3,0.73159]
[1739421279428,1.27103,2733.6,2733.2,0.00548938]
[1739421279429,0.5395,2733.6,2733.2,0.00548938]
[1739421279629,0.73699938,2733.7,2733.4,0.73157]
[1739421279833,0.00548938,2733.7,2733.2,3.21328938]
[1739421280132,0.00548938,2733.7,2733.6,0.73152]
[1739421280333,0.00548938,2733.7,2733.3,1.616]
[1739421280532,0.00548938,2733.7,2733.4,1.6937]
[1739421280736,0.00548938,2733.7,2733.4,42.4937]
[1739421281137,0.73155,2733.5,2733.4,42.4937]
[1739421281336,0.73155,2733.5,2733.4,1.1154]
[1739421282527,0.73155,2733.5,2733.4,0.5526]
[1739421282734,1.26663,2733.6,2733.4,0.5526]
[1739421282932,0.5351,2733.6,2733.4,1.28417]
[1739421283130,0.73155,2733.5,2733.4,0.5526]
[1739421283636,1.26664,2733.6,2733.4,0.5526]
[1739421283831,0.5351,2733.6,2733.4,1.28415]
[1739421284033,0.5351,2733.6,2733.4,0.5526]
[1739421284235,0.5351,2733.6,2733.4,1.28418]
[1739421284436,1.26663,2733.6,2733.4,0.5526]
[1739421284939,0.5351,2733.6,2733.4,1.28417]
[1739421285337,0.00548938,2733.7,2733.4,0.5526]
[1739421285640,0.73155,2733.5,2733.4,0.5526]
[1739421286229,0.73700938,2733.7,2733.4,0.5526]
[1739421286434,0.00548938,2733.7,2733.6,0.73152]
[1739421287837,0.73152,2733.6,2733.5,3.2078]
[1739421288035,0.73699938,2733.7,2733.5,3.2078]
[1739421288437,0.73152,2733.6,2733.5,3.2078]
[1739421288642,0.73155,2733.5,2733.4,0.5526]
[1739421288941,0.5374,2733.6,2733.4,0.5526]
[1739421289141,0.5374,2733.6,2733.4,1.28416]
[1739421289344,0.5374,2733.6,2733.4,0.5526]
[1739421289642,1.26894,2733.6,2733.4,0.5526]
[1739421289940,0.00548938,2733.7,2733.4,0.5526]
[1739421290241,0.00548938,2733.7,2733.4,3.69002209]
[1739421290440,0.00548938,2733.7,2733.5,0.73154]
[1739421290737,0.73154,2733.6,2733.4,0.5526]
[1739421291043,0.00548938,2733.7,2733.4,1.28417]
[1739421291343,0.73700938,2733.7,2733.4,0.5526]
[1739421291541,0.73700938,2733.7,2733.4,1.28415]
[1739421291845,0.73153,2733.6,2733.4,1.28417]
[1739421292740,0.73699938,2733.7,2733.4,1.28417]
[1739421293041,0.73699938,2733.7,2733.5,0.73154]
[1739421293241,0.73699938,2733.7,2733.4,0.5526]
[1739421293543,0.73699938,2733.7,2733.4,1.28416]
[1739421293736,0.00548938,2733.7,2733.4,1.28416]
[1739421293936,0.73152,2733.6,2733.4,1.28416]
[1739421294740,0.00548938,2733.7,2733.4,0.5526]
[1739421294942,0.73155,2733.5,2733.4,0.5526]
[1739421297446,0.5515,2733.6,2733.5,0.73155]
[1739421297745,0.00548938,2733.7,2733.6,0.73152]
[1739421300039,0.00548938,2733.7,2733.4,3.69002209]
[1739421300242,0.73154,2733.6,2733.4,3.69002209]
[1739421300443,0.5489,2733.6,2733.4,0.5526]
[1739421300741,0.5489,2733.6,2733.2,3.94489938]
[1739421300946,0.73159,2733.4,2733.2,4.49919938]
[1739421301146,1.6896,2733.6,2733.2,4.49919938]
[1739421301341,0.73156,2733.5,2733.3,0.7316]
[1739421301541,2.42114,2733.6,2733.4,0.73157]
[1739421301749,0.5489,2733.6,2733.4,3.13742209]
[1739421302043,1.28044,2733.6,2733.4,3.13742209]
[1739421302248,1.28044,2733.6,2733.4,3.86899209]
[1739421302445,0.5489,2733.6,2733.2,3.76758938]
[1739421302746,0.73159,2733.4,2733.2,4.49918938]
[1739421303949,0.5489,2733.6,2733.5,0.73155]
[1739421304153,0.5489,2733.6,2733.2,3.76758938]
[1739421304354,0.73159,2733.4,2733.2,4.49919938]
[1739421304547,0.5489,2733.6,2733.2,3.76758938]
[1739421304847,0.5489,2733.6,2733.4,3.13742209]
[1739421305054,0.00548938,2733.7,2733.6,0.73152]
[1739421305849,0.00548938,2733.7,2733.6,1.03011469]
[1739421306048,0.00548938,2733.7,2733.6,2.63911469]
[1739421306251,0.00548938,2733.7,2733.6,5.84691469]
[1739421309452,0.557,2734.4,2733.7,0.7315]
[1739421309649,0.557,2734.4,2734.1,0.73138]
[1739421309845,0.557,2734.4,2734.2,3.13742209]
[1739421310046,0.5458,2734.6,2734.2,3.13742209]
[1739421310249,0.98138232,2734.8,2734.3,0.5464]
[1739421310648,3.2078,2734.6,2734.0,3.2078]
[1739421310850,3.2078,2734.6,2733.9,4.74842209]
[1739421310851,1.1643,2734.5,2733.9,4.74842209]
[1739421311151,1.1643,2734.5,2733.7,3.7574]
[1739421311457,0.73145,2733.9,2733.7,3.7574]
[1739421311758,0.5641,2733.8,2733.7,4.4889]
[1739421312152,0.5641,2733.8,2733.7,1.2811]
[1739421312657,0.5724,2734.0,2733.9,0.73144]
[1739421312953,0.5614,2734.2,2734.1,0.73139]
[1739421314253,3.2078,2734.3,2734.1,0.73139]
[1739421314454,3.2078,2734.3,2734.0,0.5463]
[1739421314757,0.73141,2734.1,2733.7,5.3694]
[1739421314947,0.73141,2734.1,2733.8,0.73146]
[1739421316358,1.1467,2734.2,2733.7,5.3694]
[1739421316552,1.1467,2734.2,2734.1,0.73139]
[1739421316955,0.5614,2734.2,2734.1,0.73139]
[1739421317154,0.5614,2734.2,2734.0,0.7314]
[1739421317356,1.29277,2734.2,2733.9,3.86885209]
[1739421317552,0.5609,2734.1,2733.9,3.86885209]
[1739421318963,0.5609,2734.1,2733.9,3.13742209]
[1739421319258,0.5609,2734.1,2734.0,0.73142]
[1739421319461,0.5614,2734.2,2733.9,3.13742209]
[1739421319659,0.5614,2734.2,2734.1,0.73139]
[1739421320458,0.5919,2734.5,2733.9,3.13742209]
[1739421320657,1.8859,2734.5,2734.2,0.73136]
[1739421320861,0.73132,2734.4,2734.1,0.73138]
[1739421321254,1.1546,2734.5,2734.1,0.73138]
[1739421321453,1.1546,2734.5,2733.9,3.13742209]
[1739421321654,0.73135,2734.3,2734.0,0.73141]
[1739421321862,1.1546,2734.5,2733.9,3.13742209]
[1739421322059,0.73135,2734.3,2734.0,0.7314]
[1739421322965,1.1546,2734.5,2734.0,0.7314]
[1739421323167,1.1546,2734.5,2733.9,3.13742209]
[1739421323366,1.1546,2734.5,2733.8,3.7602]
[1739421323567,0.73144,2733.9,2733.8,3.2078]
[1739421324063,0.41761204,2734.3,2733.8,3.2078]
[1739421324264,1.1212,2734.1,2733.8,3.2078]
[1739421324467,0.73144,2733.9,2733.8,3.2078]
[1739421326267,1.1212,2734.1,2733.8,3.2078]
[1739421326457,0.73144,2733.9,2733.8,3.2078]
[1739421326859,1.1212,2734.1,2733.4,0.5412]
[1739421327069,0.7315,2733.7,2733.5,0.73154]
[1739421327268,0.5909,2733.6,2733.4,0.5412]
[1739421327669,1.32244,2733.6,2733.4,0.5412]
[1739421328170,0.5909,2733.6,2733.4,0.5412]
[1739421328367,1.32242,2733.6,2733.4,0.5412]
[1739421329761,0.5909,2733.6,2733.3,3.2078]
[1739421329970,0.5909,2733.6,2733.2,0.00548938]
[1739421329971,0.7316,2733.3,2733.2,0.00548938]
[1739421331767,3.9394,2733.3,2733.2,0.00548938]
[1739421331974,0.73169,2733.0,2732.7,0.73175]
[1739421332172,0.73179,2732.6,2732.5,3.2078]
[1739421332472,3.67892209,2732.9,2732.4,0.5914]
[1739421332672,0.562,2732.8,2732.3,3.2078]
[1739421332974,0.73195,2732.0,2731.9,3.2078]
[1739421333168,1.614,2732.2,2731.5,3.13742209]
[1739421333368,0.73202,2731.8,2731.4,0.5793]
[1739421333672,0.73202,2731.8,2731.6,0.00548938]
[1739421333873,3.13742209,2732.0,2731.6,0.00548938]
[1739421334065,0.73199,2731.9,2731.6,0.00548938]
[1739421334667,3.13742209,2732.0,2731.6,0.00548938]
[1739421334865,3.45044,2732.1,2731.6,0.00548938]
[1739421335074,5.9263,2732.1,2731.6,0.00548938]
[1739421335275,3.13742209,2732.0,2731.6,0.00548938]
[1739421335476,0.73197,2732.0,2731.6,0.00548938]
[1739421335776,0.562,2732.1,2731.7,0.73202]
[1739421335970,5.3859,2732.4,2731.8,3.13742209]
[1739421336179,3.2078,2732.4,2731.8,3.13742209]
[1739421336365,3.2078,2732.4,2732.1,0.73192]
[1739421336676,3.2078,2732.4,2732.1,3.86934209]
[1739421337375,0.5568,2732.5,2732.1,3.13742209]
[1739421337573,1.28862,2732.5,2732.1,3.13742209]
[1739421337973,0.73185,2732.4,2732.1,3.13742209]
[1739421338177,0.5568,2732.5,2732.1,3.13742209]
[1739421338567,0.5568,2732.5,2731.9,3.7511]
[1739421338787,0.73187,2732.4,2731.9,3.7511]
[1739421339072,0.73188,2732.3,2731.9,3.7511]
[1739421339275,0.73188,2732.3,2731.9,44.5511]
[1739421339475,0.5568,2732.5,2731.9,44.5511]
[1739421339679,0.5568,2732.5,2731.9,3.2078]
[1739421339877,3.13742209,2732.3,2731.9,3.2078]
[1739421340080,3.2078,2732.0,2731.3,2.08502606]